bitfinex-derivatives/quotes_SOLF0:USTF0_20250409
["timestamp","ask_amount","ask_price","bid_price","bid_amount"]
[1744204082046,9.5548,104.72,104.71,0.07262349]
[1744204083141,9.5548,104.72,104.71,2.349e-05]
[1744204083350,106.32318236,104.72,104.63,554.32]
[1744204083536,106.32318236,104.72,104.63,563.3832]
[1744204083738,51.29088236,104.7,104.63,59.4032]
[1744204084345,51.29088236,104.7,104.63,9.0632]
[1744204084552,0.06765686,104.68,104.65,0.06906972]
[1744204084751,9.5602,104.66,104.65,0.06906972]
[1744204085047,0.06765686,104.68,104.65,0.06906972]
[1744204085441,4.6923,104.72,104.66,51.29088236]
[1744204085749,9.5543,104.73,104.66,51.29088236]
[1744204085948,64.2517,104.75,104.67,62.0]
[1744204086251,9.5556,104.72,104.67,62.0]
[1744204086646,9.5556,104.72,104.68,0.06356426]
[1744204086647,0.07118778,104.71,104.68,0.06356426]
[1744204087357,50.43118778,104.71,104.68,6.426e-05]
[1744204087546,51.29088236,104.7,104.68,6.426e-05]
[1744204087952,18.7304,104.69,104.68,6.426e-05]
[1744204088451,23.4582,104.69,104.68,6.426e-05]
[1744204088749,9.5623,104.64,104.61,4.6944]
[1744204088947,9.5623,104.64,104.6,9.5649]
[1744204089148,101.65088236,104.67,104.56,51.29088236]
[1744204089357,51.29088236,104.65,104.56,60.67418236]
[1744204089650,51.29088236,104.65,104.56,9.3833]
[1744204089953,0.0692726,104.62,104.59,0.06560154]
[1744204090449,9.5648,104.61,104.59,0.06560154]
[1744204090651,0.0692726,104.62,104.59,0.06560154]
[1744204091450,9.5653,104.61,104.59,0.06560154]
[1744204091653,0.0692726,104.62,104.59,0.06560154]
[1744204091954,9.5712,104.54,104.5,122.89610236]
[1744204092145,9.5712,104.54,104.5,21.24522]
[1744204092350,9.5712,104.54,104.51,9.5736]
[1744204092548,51.29088236,104.56,104.5,21.24522]
[1744204092751,51.29088236,104.6,104.5,21.24522]
[1744204092950,51.29088236,104.58,104.51,9.5736]
[1744204093252,0.06499588,104.56,104.5,21.24522]
[1744204093458,0.06499588,104.56,104.53,0.06826126]
[1744204093656,9.63479588,104.56,104.53,0.06826126]
[1744204093950,0.06499588,104.56,104.53,9.63986126]
[1744204094141,0.06499588,104.56,104.53,0.06826126]
[1744204094754,0.06499588,104.56,104.53,50.44826126]
[1744204095151,0.06499588,104.56,104.55,9.5703]
[1744204095353,0.06499588,104.56,104.53,50.44826126]
[1744204095955,9.5661,104.6,104.53,50.44826126]
[1744204096252,51.29088236,104.62,104.56,9.5689]
[1744204096460,51.29088236,104.6,104.5,21.24522]
[1744204096756,50.4,104.59,104.52,9.5724]
[1744204097055,51.29088236,104.58,104.5,21.24522]
[1744204097259,0.07158293,104.57,104.54,0.06680514]
[1744204098858,4.90668293,104.57,104.54,0.06680514]
[1744204099049,56.19756529,104.57,104.54,0.06680514]
[1744204099246,9.5703,104.55,104.54,0.06680514]
[1744204100761,59.9903,104.55,104.54,5.14e-06]
[1744204102056,111.28118236,104.55,104.54,5.14e-06]
[1744204103362,101.71088236,104.55,104.5,21.24522]
[1744204103867,101.71088236,104.55,104.5,30.81972]
[1744204104366,50.42,104.55,104.5,30.81972]
[1744204104667,0.06702953,104.54,104.51,0.06103287]
[1744204104862,9.5728,104.53,104.51,0.06103287]
[1744204105060,0.06702953,104.54,104.51,0.06103287]
[1744204105456,31.72835998,104.54,104.51,3.287e-05]
[1744204105664,31.66133045,104.52,104.44,9.4765]
[1744204105966,50.44,104.51,104.44,9.4765]
[1744204106169,9.5772,104.48,104.45,9.5791]
[1744204106560,9.5783,104.47,104.44,19.0565]
[1744204106864,9.5783,104.47,104.45,0.07198931]
[1744204107061,31.7327921,104.48,104.45,0.07198931]
[1744204107260,31.7327921,104.48,104.38,14.2668]
[1744204107261,51.54812873,104.46,104.38,14.2668]
[1744204107456,51.54812873,104.44,104.38,14.2668]
[1744204107663,51.54812873,104.44,104.38,23.8523]
[1744204107664,9.5838,104.41,104.38,23.8523]
[1744204107963,51.54812873,104.44,104.38,14.2668]
[1744204108169,51.54812873,104.44,104.39,9.5848]
[1744204108369,0.0698565,104.42,104.4,0.07206335]
[1744204109057,101.98812873,104.48,104.4,0.07206335]
[1744204109262,101.98812873,104.48,104.4,50.44]
[1744204109768,101.98812873,104.48,104.38,14.2668]
[1744204110269,0.0715273,104.44,104.42,0.07088278]
[1744204112074,0.0715273,104.44,104.42,9.65258278]
[1744204112463,0.0715273,104.44,104.42,0.07088278]
[1744204113779,0.0715273,104.44,104.42,9.65258278]
[1744204114072,0.0715273,104.44,104.42,0.07088278]
[1744204114772,0.0715273,104.44,104.42,9.65258278]
[1744204115073,0.0715273,104.44,104.42,0.07088278]
[1744204115284,0.0715273,104.44,104.43,9.5813]
[1744204115974,0.0715273,104.44,104.42,9.65268278]
[1744204116169,0.0715273,104.44,104.42,0.07088278]
[1744204116477,0.0715273,104.44,104.43,9.5813]
[1744204116665,4.774,104.49,104.42,0.07088278]
[1744204116976,9.5761,104.49,104.46,9.5778]
[1744204117175,51.54812873,104.5,104.41,50.46]
[1744204117378,51.54812873,104.5,104.44,9.5802]
[1744204117673,4.4796,104.51,104.41,102.00812873]
[1744204118078,0.07180934,104.48,104.46,0.07178413]
[1744204119379,9.5776,104.47,104.46,0.07178413]
[1744204120573,0.07180934,104.48,104.46,0.07178413]
[1744204121071,0.07180934,104.48,104.46,9.64968413]
[1744204121374,0.07180934,104.48,104.46,0.07178413]
[1744204121576,9.5776,104.47,104.46,0.07178413]
[1744204122667,9.64880934,104.48,104.46,0.07178413]
[1744204122875,0.07180934,104.48,104.46,0.07178413]
[1744204123373,51.61993807,104.48,104.41,14.3887]
[1744204123581,51.54812873,104.46,104.41,9.4991]
[1744204123775,51.54812873,104.46,104.38,4.787]
[1744204123976,9.5808,104.44,104.39,4.4213]
[1744204124379,9.5799,104.45,104.39,4.4213]
[1744204124579,0.07118289,104.43,104.39,4.4213]
[1744204124871,0.07118289,104.43,104.42,9.5818]
[1744204125278,9.5791,104.46,104.41,50.48]
[1744204125482,556.1,104.49,104.41,50.48]
[1744204125678,50.48,104.49,104.41,50.48]
[1744204126183,9.5782,104.47,104.44,9.58]
[1744204126481,9.64451877,104.47,104.44,9.64840003]
[1744204126779,0.06631877,104.47,104.44,9.64840003]
[1744204127584,0.06631877,104.47,104.44,0.06840003]
[1744204127974,4.7679,104.52,104.45,50.48]
[1744204128181,56.31602873,104.52,104.45,64.7708]
[1744204128382,56.31602873,104.52,104.45,55.1919]
[1744204128589,9.5762,104.49,104.46,9.578]
[1744204128779,4.7679,104.52,104.45,55.1919]
[1744204128979,4.7679,104.52,104.46,4.4503]
[1744204129284,0.0632254,104.5,104.47,9.6419243]
[1744204129485,0.0632254,104.5,104.47,0.0648243]
[1744204129677,0.0632254,104.5,104.48,9.5763]
[1744204129982,0.0632254,104.5,104.47,0.0648243]
[1744204130777,9.6390254,104.5,104.47,9.6420243]
[1744204131075,0.0632254,104.5,104.47,9.6420243]
[1744204131280,0.0632254,104.5,104.47,0.0648243]
[1744204131685,9.5767,104.48,104.47,0.0648243]
[1744204131983,0.0632254,104.5,104.47,0.0648243]
[1744204132787,0.0632254,104.5,104.48,9.5759]
[1744204132980,0.0632254,104.5,104.47,0.0648243]
[1744204133785,9.6384254,104.5,104.47,9.6417243]
[1744204133979,0.0632254,104.5,104.47,9.6417243]
[1744204134186,0.0632254,104.5,104.47,0.0648243]
[1744204134792,0.0632254,104.5,104.49,9.5758]
[1744204134985,0.0632254,104.5,104.47,50.5448243]
[1744204135484,0.0632254,104.5,104.47,0.0648243]
[1744204136375,9.5763,104.49,104.47,0.0648243]
[1744204136688,0.0632254,104.5,104.47,0.0648243]
[1744204136890,9.6389254,104.5,104.47,9.6420243]
[1744204137189,0.0632254,104.5,104.47,0.0648243]
[1744204137488,9.6384254,104.5,104.47,9.6416243]
[1744204137695,0.0632254,104.5,104.47,0.0648243]
[1744204137883,9.5758,104.49,104.47,0.0648243]
[1744204138084,0.0632254,104.5,104.47,0.0648243]
[1744204138590,0.0632254,104.5,104.49,9.5758]
[1744204139492,0.0632254,104.5,104.48,69.328]
[1744204139693,0.0632254,104.5,104.48,59.7516]
[1744204140301,0.0632254,104.5,104.48,4.7539]
[1744204140592,9.5763,104.49,104.47,0.0648243]
[1744204140993,0.0632254,104.5,104.47,0.0648243]
[1744204141195,0.0632254,104.5,104.47,50.5048243]
[1744204141387,4.5154,104.55,104.47,50.5048243]
[1744204141586,4.5154,104.55,104.47,50.44]
[1744204142287,9.5738,104.52,104.49,9.5754]
[1744204142493,36.19432247,104.55,104.47,50.44]
[1744204142689,0.06432134,104.52,104.49,0.06448876]
[1744204142994,9.5749,104.5,104.49,0.06448876]
[1744204144999,50.44,104.5,104.44,4.6868]
[1744204145195,31.67892247,104.49,104.44,4.6868]
[1744204145591,9.5789,104.46,104.44,4.6868]
[1744204145798,50.44,104.5,104.46,9.5782]
[1744204145998,31.67892247,104.51,104.46,9.5782]
[1744204146292,9.64700426,104.49,104.47,0.06063102]
[1744204146499,9.64700426,104.49,104.47,9.63813102]
[1744204146695,0.07050426,104.49,104.47,9.63813102]
[1744204146898,0.07050426,104.49,104.47,0.06063102]
[1744204147198,0.07050426,104.49,104.47,9.63783102]
[1744204147389,9.64640426,104.49,104.47,9.63783102]
[1744204147698,0.07050426,104.49,104.47,0.06063102]
[1744204147890,9.5767,104.48,104.47,0.06063102]
[1744204148699,0.07050426,104.49,104.47,0.06063102]
[1744204149091,9.5767,104.48,104.47,0.06063102]
[1744204150997,9.5813,104.43,104.42,4.8336]
[1744204151295,31.67892247,104.47,104.42,4.8336]
[1744204151497,4.6389,104.48,104.42,4.8336]
[1744204151700,50.44,104.49,104.42,4.8336]
[1744204151898,9.5766,104.49,104.43,50.44]
[1744204152094,0.0684936,104.47,104.44,0.07216309]
[1744204152298,0.0684936,104.47,104.43,50.44]
[1744204152498,0.0684936,104.47,104.44,0.06158614]
[1744204152694,0.0684936,104.47,104.44,9.64158614]
[1744204152898,0.0684936,104.47,104.44,0.06158614]
[1744204153099,9.6468936,104.47,104.44,9.64118614]
[1744204153302,0.0684936,104.47,104.44,0.06158614]
[1744204153697,0.0684936,104.47,104.46,9.5785]
[1744204154306,0.0684936,104.47,104.44,0.06158614]
[1744204154706,9.5795,104.45,104.44,0.06158614]
[1744204154907,0.0684936,104.47,104.44,0.06158614]
[1744204155799,0.0684936,104.47,104.45,9.5791]
[1744204156002,0.0684936,104.47,104.44,50.50158614]
[1744204156404,0.0684936,104.47,104.46,9.5785]
[1744204157105,0.0684936,104.47,104.44,50.50158614]
[1744204157306,0.0684936,104.47,104.45,62.0]
[1744204157509,0.0684936,104.47,104.46,9.5785]
[1744204158505,0.0684936,104.47,104.45,71.5791]
[1744204158908,0.0684936,104.47,104.45,62.0]
[1744204160511,0.0684936,104.47,104.46,9.5785]
[1744204161109,9.6466936,104.47,104.45,62.0]
[1744204161413,0.0684936,104.47,104.44,0.06158614]
[1744204162211,9.6462936,104.47,104.45,9.5791]
[1744204162411,0.0684936,104.47,104.44,0.06158614]
[1744204162709,0.0684936,104.47,104.46,9.5785]
[1744204163711,0.0684936,104.47,104.44,0.06158614]
[1744204163913,9.5785,104.46,104.44,0.06158614]
[1744204164108,0.0684936,104.47,104.44,9.64138614]
[1744204164314,0.0684936,104.47,104.44,0.06158614]
[1744204165106,9.5795,104.45,104.44,0.06158614]
[1744204165916,9.5787,104.46,104.44,0.06158614]
[1744204166115,0.0684936,104.47,104.44,0.06158614]
[1744204166615,9.5795,104.45,104.44,0.06158614]
[1744204167215,9.5793,104.46,104.44,0.06158614]
[1744204167414,0.0684936,104.47,104.44,0.06158614]
[1744204167719,9.5791,104.46,104.44,0.06158614]
[1744204167912,0.0684936,104.47,104.44,0.06158614]
[1744204168316,9.5795,104.45,104.44,0.06158614]
[1744204168816,0.0684936,104.47,104.44,0.06158614]
[1744204169409,9.5795,104.45,104.44,0.06158614]
[1744204169604,9.5795,104.45,104.37,359.0]
[1744204169605,19.8123923,104.45,104.37,359.0]
[1744204169822,19.8123923,104.42,104.36,9.0726]
[1744204170116,70.2323923,104.42,104.36,9.0726]
[1744204170625,19.8123923,104.4,104.36,18.6601]
[1744204170920,0.06433147,104.4,104.38,0.06950378]
[1744204172324,0.06433147,104.4,104.39,9.585]
[1744204172522,0.06433147,104.4,104.38,0.06950378]
[1744204172722,9.64903147,104.4,104.38,0.06950378]
[1744204172919,0.06433147,104.4,104.38,0.06950378]
[1744204173522,0.06433147,104.4,104.38,9.65520378]
[1744204173910,9.64883147,104.4,104.38,0.06950378]
[1744204174222,0.06433147,104.4,104.38,0.06950378]
[1744204174616,9.585,104.39,104.38,0.06950378]
[1744204175429,9.589,104.35,104.33,9.2304]
[1744204175930,36.21839495,104.4,104.33,9.2304]
[1744204176331,36.21839495,104.4,104.33,18.8208]
[1744204176537,9.5881,104.36,104.33,18.8208]
[1744204176829,9.5881,104.36,104.35,0.06032949]
[1744204177019,9.65490801,104.36,104.35,0.06032949]
[1744204182537,0.06680801,104.36,104.35,0.06032949]
[1744204183125,9.1223,104.4,104.35,0.06032949]
[1744204183126,4.6367,104.4,104.35,0.06032949]
[1744204183330,55.0119,104.41,104.35,0.06032949]
[1744204183629,9.5877,104.36,104.35,0.06032949]
[1744204185138,0.0692473,104.37,104.35,0.06032949]
[1744204186139,9.6563473,104.37,104.35,0.06032949]
[1744204187138,0.0692473,104.37,104.35,0.06032949]
[1744204187537,9.6565473,104.37,104.35,0.06032949]
[1744204187850,0.0692473,104.37,104.35,0.06032949]
[1744204188139,0.0692473,104.37,104.36,9.5877]
[1744204188432,0.0692473,104.37,104.35,0.06032949]
[1744204188627,9.6564473,104.37,104.35,0.06032949]
[1744204188831,0.0692473,104.37,104.35,0.06032949]
[1744204189334,9.5877,104.36,104.35,0.06032949]
[1744204190841,82.26204225,104.37,104.3,9.5929]
[1744204191038,82.19279495,104.37,104.27,14.2289]
[1744204191343,4.718,104.36,104.28,31.73279495]
[1744204191537,70.31433391,104.37,104.29,19.85433391]
[1744204191740,70.31433391,104.37,104.3,50.46]
[1744204191940,9.65184277,104.35,104.32,9.66295396]
[1744204192741,9.5898,104.34,104.32,9.66295396]
[1744204192947,0.06284277,104.35,104.32,0.07215396]
[1744204193745,9.5899,104.34,104.32,9.66295396]
[1744204193946,0.06284277,104.35,104.32,0.07215396]
[1744204194348,0.06284277,104.35,104.32,9.66305396]
[1744204194644,0.06284277,104.35,104.32,0.07215396]
[1744204195045,9.5901,104.34,104.32,0.07215396]
[1744204195346,0.06284277,104.35,104.32,0.07215396]
[1744204195647,19.85433391,104.33,104.27,9.7945]
[1744204195942,0.06284277,104.35,104.25,4.5287]
[1744204195943,19.85433391,104.31,104.25,4.5287]
[1744204196543,9.5955,104.28,104.25,4.5287]
[1744204196753,19.85433391,104.31,104.25,4.5287]
[1744204196937,0.06934026,104.28,104.25,66.55329882]
[1744204197334,0.06934026,104.28,104.25,116.97329882]
[1744204197739,9.5962,104.27,104.25,50.44459882]
[1744204197943,9.5962,104.27,104.25,0.02459882]
[1744204198952,9.66484026,104.28,104.25,9.62229882]
[1744204199152,0.06934026,104.28,104.25,0.02459882]
[1744204200240,0.06934026,104.28,104.27,9.596]
[1744204200643,24.48063391,104.33,104.27,62.0]
[1744204200847,9.5918,104.32,104.29,9.5935]
[1744204201244,36.42960023,104.34,104.26,55.2883]
[1744204201749,4.6392,104.34,104.26,55.2883]
[1744204202048,0.06060486,104.31,104.3,9.5928]
[1744204202353,87.02400023,104.35,104.26,87.07870023]
[1744204202651,0.06444286,104.32,104.29,0.06854288]
[1744204203062,9.65644286,104.32,104.29,9.66224288]
[1744204203349,0.06444286,104.32,104.29,0.06854288]
[1744204204153,0.06444286,104.32,104.3,9.5932]
[1744204204340,31.79040023,104.38,104.29,62.06854288]
[1744204204541,9.5881,104.36,104.33,9.5901]
[1744204204942,9.5881,104.36,104.31,50.44]
[1744204205250,96.37090023,104.41,104.31,82.23040023]
[1744204205549,9.64953915,104.37,104.35,0.06479709]
[1744204205748,0.06213915,104.37,104.35,0.06479709]
[1744204206145,9.64953915,104.37,104.35,0.06479709]
[1744204206549,0.06213915,104.37,104.35,0.06479709]
[1744204206757,9.64973915,104.37,104.35,0.06479709]
[1744204207053,0.06213915,104.37,104.35,0.06479709]
[1744204207352,9.64983915,104.37,104.35,0.06479709]
[1744204208055,9.64983915,104.37,104.35,9.65339709]
[1744204208759,9.64983915,104.37,104.35,0.06479709]
[1744204209251,0.06213915,104.37,104.35,0.06479709]
[1744204209947,9.5877,104.36,104.35,0.06479709]
[1744204217858,9.591,104.33,104.31,9.5922]
[1744204218446,9.5901,104.34,104.31,9.5922]
[1744204218648,50.44,104.36,104.31,9.5922]
[1744204218845,9.5901,104.34,104.31,9.5922]
[1744204219057,0.06697172,104.35,104.32,0.06349452]
[1744204220458,9.5905,104.33,104.32,0.06349452]
[1744204224467,50.44,104.33,104.27,4.8787]
[1744204224768,70.29675114,104.33,104.27,4.8787]
[1744204224968,9.5929,104.31,104.27,4.8787]
[1744204225168,9.5929,104.31,104.28,9.5949]
[1744204225467,9.5944,104.29,104.28,0.03009033]
[1744204226065,19.91798025,104.31,104.28,0.03009033]
[1744204226259,0.06122911,104.31,104.28,9.62459033]
[1744204226673,9.65412911,104.31,104.28,9.62459033]
[1744204226860,0.06122911,104.31,104.29,62.0]
[1744204227169,0.06122911,104.31,104.28,0.03009033]
[1744204227354,0.06122911,104.31,104.29,9.5937]
[1744204227971,0.06122911,104.31,104.3,9.5932]
[1744204228167,0.06122911,104.31,104.28,0.03009033]
[1744204229266,9.65422911,104.31,104.28,9.62469033]
[1744204229473,19.91798025,104.31,104.28,0.03009033]
[1744204229769,9.5942,104.29,104.28,0.03009033]
[1744204230469,19.91798025,104.31,104.28,0.03009033]
[1744204230767,0.06122911,104.31,104.28,0.03009033]
[1744204230972,0.06122911,104.31,104.3,9.5932]
[1744204231471,9.59,104.34,104.29,50.38]
[1744204231661,9.59,104.34,104.3,4.7783]
[1744204232063,19.85675114,104.36,104.3,4.7783]
[1744204232773,0.06146064,104.34,104.32,0.06898294]
[1744204233073,9.65106064,104.34,104.32,9.65998294]
[1744204233370,0.06146064,104.34,104.32,0.06898294]
[1744204233871,9.65156064,104.34,104.32,0.06898294]
[1744204234267,0.06146064,104.34,104.32,0.06898294]
[1744204235072,0.06146064,104.34,104.32,9.65998294]
[1744204235573,9.65116064,104.34,104.32,0.06898294]
[1744204235982,0.06146064,104.34,104.32,0.06898294]
[1744204236762,70.29821178,104.34,104.28,4.7876]
[1744204236965,19.85675114,104.32,104.26,9.3855]
[1744204238076,0.06479593,104.3,104.28,0.0223365]
[1744204238574,9.595,104.29,104.28,0.0223365]
[1744204238776,0.06479593,104.3,104.28,0.0223365]
[1744204239277,70.30154707,104.3,104.28,0.0223365]
[1744204239577,70.30154707,104.3,104.22,421.0]
[1744204239768,70.30154707,104.3,104.22,62.0]
[1744204239965,9.5966,104.27,104.22,62.0]
[1744204240371,9.5966,104.27,104.23,50.38]
[1744204240770,0.06453272,104.26,104.25,9.5978]
[1744204241372,50.38,104.3,104.26,9.5962]
[1744204241575,19.85675114,104.32,104.26,9.5962]
[1744204241767,9.7329,104.35,104.27,70.23675114]
[1744204241963,19.85675114,104.33,104.28,59.9264]
[1744204242166,9.5927,104.31,104.28,9.5464]
[1744204242366,19.85675114,104.33,104.28,9.5464]
[1744204242569,0.07005733,104.31,104.28,9.60726048]
[1744204242875,0.07005733,104.31,104.28,9.5464]
[1744204243078,4.4936,104.37,104.29,19.85675114]
[1744204243270,9.589,104.35,104.3,50.38]
[1744204243471,9.589,104.35,104.31,19.85675114]
[1744204243674,4.4936,104.37,104.33,9.59]
[1744204243974,9.5883,104.36,104.33,9.59]
[1744204244176,9.64973871,104.36,104.34,9.5893]
[1744204244378,9.64973871,104.36,104.33,0.07357499]
[1744204244678,9.64973871,104.36,104.33,9.66347499]
[1744204244875,0.06143871,104.36,104.33,9.66347499]
[1744204245379,9.64953871,104.36,104.33,9.66347499]
[1744204245676,0.06143871,104.36,104.35,9.5886]
[1744204246080,4.7196,104.4,104.34,112.38]
[1744204246279,4.7196,104.4,104.36,9.587]
[1744204246578,9.5836,104.41,104.34,144.1353516]
[1744204246773,9.5836,104.41,104.38,9.5854]
[1744204247271,9.65245816,104.41,104.38,9.64958603]
[1744204247582,0.06885816,104.41,104.38,9.64958603]
[1744204247770,0.06885816,104.41,104.38,0.06418603]
[1744204248175,31.7553516,104.4,104.33,14.1254]
[1744204248480,31.7553516,104.44,104.34,31.7553516]
[1744204248774,9.5835,104.41,104.38,9.5858]
[1744204248981,82.1353516,104.44,104.36,4.6237]
[1744204249283,9.5847,104.4,104.39,0.06509811]
[1744204250379,9.65314389,104.41,104.39,0.06509811]
[1744204251084,9.584,104.4,104.39,0.06509811]
[1744204251287,0.06954389,104.41,104.39,0.06509811]
[1744204251585,0.06954389,104.41,104.39,9.64969811]
[1744204252572,434.69905673,104.5,104.4,50.36]
[1744204252768,31.7553516,104.48,104.4,50.36]
[1744204252973,9.5809,104.44,104.41,9.5827]
[1744204253282,31.7553516,104.48,104.4,50.36]
[1744204253482,9.5804,104.44,104.4,50.36]
[1744204253782,9.5804,104.44,104.43,0.0646428]
[1744204254580,9.5804,104.44,104.43,4.28e-05]
[1744204254977,14.196,104.44,104.43,4.28e-05]
[1744204255179,45.9513516,104.44,104.43,4.28e-05]
[1744204255682,9.5841,104.4,104.38,9.5857]
[1744204256084,36.3709516,104.44,104.37,50.36]
[1744204256385,9.5826,104.42,104.39,9.5843]
[1744204256774,9.5835,104.41,104.39,9.5843]
[1744204256974,0.06821881,104.42,104.39,0.06631268]
[1744204257289,9.584,104.4,104.39,0.06631268]
[1744204257793,0.06821881,104.42,104.39,0.06631268]
[1744204258991,9.584,104.4,104.39,0.06631268]
[1744204259189,0.06821881,104.42,104.39,0.06631268]
[1744204259591,0.06821881,104.42,104.41,9.5831]
[1744204259982,0.06821881,104.42,104.39,0.06631268]
[1744204260181,0.06821881,104.42,104.41,9.5831]
[1744204261691,0.06821881,104.42,104.39,0.06631268]
[1744204262283,9.65091881,104.42,104.39,9.65081268]
[1744204262486,0.06821881,104.42,104.39,0.06631268]
[1744204263086,9.65081881,104.42,104.39,9.65051268]
[1744204263290,9.65081881,104.42,104.39,0.06631268]
[1744204263589,9.65081881,104.42,104.39,9.65081268]
[1744204263990,0.06821881,104.42,104.39,9.65081268]
[1744204264392,0.06821881,104.42,104.4,9.5839]
[1744204264590,9.65081881,104.42,104.39,0.06631268]
[1744204264792,0.06821881,104.42,104.39,0.06631268]
[1744204265091,9.65091881,104.42,104.39,0.06631268]
[1744204266094,9.65091881,104.42,104.4,9.5837]
[1744204266490,0.06821881,104.42,104.39,0.06631268]
[1744204267690,9.584,104.4,104.39,0.06631268]
[1744204268295,0.06821881,104.42,104.39,0.06631268]
[1744204268791,0.06821881,104.42,104.41,9.5831]
[1744204269098,4.8967,104.47,104.41,50.26]
[1744204269295,24.73079594,104.47,104.41,50.26]
[1744204269492,24.73079594,104.47,104.42,9.5818]
[1744204269795,24.73079594,104.47,104.41,50.26]
[1744204269997,24.73079594,104.47,104.39,19.83409594]
[1744204270294,0.06536177,104.45,104.43,0.06566714]
[1744204270496,9.5804,104.44,104.43,0.06566714]
[1744204272294,9.5844,104.4,104.38,50.26]
[1744204272688,9.5844,104.4,104.38,59.8455]
[1744204273191,31.70840271,104.44,104.38,50.26]
[1744204273387,40.77060271,104.44,104.36,13.7247]
[1744204273590,0.07270641,104.42,104.4,0.066914]
[1744204273797,9.5831,104.41,104.4,0.066914]
[1744204276906,31.78110912,104.42,104.33,510.4874]
[1744204277107,31.70840271,104.42,104.33,519.4213]
[1744204277501,9.5859,104.39,104.36,9.5873]
[1744204277707,9.5859,104.39,104.33,519.4213]
[1744204278005,4.6045,104.42,104.37,9.5863]
[1744204278400,4.6045,104.42,104.38,0.06622016]
[1744204278600,9.585,104.39,104.38,0.06622016]
[1744204281605,9.5844,104.4,104.38,9.65192016]
[1744204281799,9.5844,104.4,104.38,0.06622016]
[1744204282000,0.07197365,104.41,104.38,0.06622016]
[1744204282201,9.584,104.4,104.38,0.06622016]
[1744204282407,0.07197365,104.41,104.38,0.06622016]
[1744204282901,50.35197365,104.41,104.38,0.06622016]
[1744204283102,9.585,104.39,104.38,2.016e-05]
[1744204284405,41.28840271,104.39,104.27,514.63006527]
[1744204284706,31.70840271,104.34,104.27,160.41336527]
[1744204284903,4.4576,104.33,104.27,160.41336527]
[1744204285094,372.1932,104.38,104.27,86.77170271]
[1744204285293,9.589,104.35,104.32,9.591]
[1744204285508,0.06083833,104.34,104.32,9.591]
[1744204285911,0.06083833,104.34,104.33,9.5905]
[1744204286205,0.06083833,104.34,104.31,55.0851]
[1744204287119,0.06083833,104.34,104.33,9.5905]
[1744204287611,0.06083833,104.34,104.31,59.6]
[1744204288209,9.65083833,104.34,104.32,9.5913]
[1744204289006,0.06083833,104.34,104.31,9.32]
[1744204289711,9.5909,104.33,104.31,18.9117]
[1744204290105,0.06083833,104.34,104.31,18.9117]
[1744204290298,0.06083833,104.34,104.31,4.8051]
[1744204290611,0.06083833,104.34,104.27,13.7952]
[1744204290806,9.5918,104.32,104.29,9.5938]
[1744204291106,9.65330099,104.32,104.29,9.5938]
[1744204291311,0.06150099,104.32,104.27,64.0152]
[1744204291506,0.06150099,104.32,104.3,9.5926]
[1744204291699,0.06150099,104.32,104.28,31.70840271]
[1744204291898,9.5887,104.35,104.32,9.5908]
[1744204292911,9.65182484,104.35,104.32,9.65846232]
[1744204293508,9.65182484,104.35,104.33,9.5902]
[1744204294616,9.65182484,104.35,104.32,71.65856232]
[1744204295316,9.65182484,104.35,104.33,9.5905]
[1744204295619,0.06312484,104.35,104.33,50.22]
[1744204295914,0.06312484,104.35,104.34,9.5896]
[1744204297622,54.7186,104.41,104.37,9.5867]
[1744204297822,9.5846,104.4,104.37,9.5867]
[1744204298013,526.03186043,104.43,104.37,9.5867]
[1744204298317,19.85186043,104.43,104.38,9.5855]
[1744204298518,19.85186043,104.43,104.34,24.59416043]
[1744204298722,0.06485655,104.4,104.37,0.06295077]
[1744204299026,9.5851,104.39,104.37,0.06295077]
[1744204299319,0.06485655,104.4,104.37,0.06295077]
[1744204299714,9.5854,104.39,104.37,0.06295077]
[1744204300428,0.06485655,104.4,104.37,0.06295077]
[1744204301309,19.91671698,104.4,104.37,0.06295077]
[1744204301511,9.5859,104.38,104.37,0.06295077]
[1744204302521,0.06485655,104.4,104.37,0.06295077]
[1744204303228,19.85186043,104.39,104.37,0.06295077]
[1744204303526,9.5859,104.38,104.37,0.06295077]
[1744204304824,9.5859,104.38,104.37,5.077e-05]
[1744204307926,0.06485655,104.4,104.37,5.077e-05]
[1744204308523,9.585,104.39,104.37,5.077e-05]
[1744204308722,0.06485655,104.4,104.37,5.077e-05]
[1744204310629,0.06485655,104.4,104.38,9.5854]